[Event "Titled Tuesday Blitz August 1 Early 2023"]
[White "Goswami, Vedant"]
[Black "Hrescak, Ivana"]
[WhiteFideId "5003725"]
[BlackFideId "14613441"]
[WhiteElo "2310"]
[BlackElo "2206"]
[Result "1-0"]
[Round "11"]
[TimeControl "180+1"]
[Date "2023.08.01"]
[WhiteClock "0:00:53"]
[BlackClock "0:00:00"]
[Board "150"]

1. e4 {[%clk 0:03:00]}  e5 {[%clk 0:03:00]} 2. Nf3 {[%clk 0:02:59]}  Nc6 {[%clk 0:03:00]} 3. Bc4 {[%clk 0:02:59]}  Nf6 {[%clk 0:03:00]} 4. d4 {[%clk 0:02:58]}  exd4 {[%clk 0:02:59]} 5. O-O {[%clk 0:02:58]}  Nxe4 {[%clk 0:02:58]} 6. Re1 {[%clk 0:02:56]}  d5 {[%clk 0:02:58]} 7. Bxd5 {[%clk 0:02:56]}  Qxd5 {[%clk 0:02:58]} 8. Nc3 {[%clk 0:02:57]}  Qh5 {[%clk 0:02:58]} 9. Nxe4 {[%clk 0:02:57]}  Be6 {[%clk 0:02:58]} 10. Neg5 {[%clk 0:02:56]}  O-O-O {[%clk 0:02:53]} 11. Nxe6 {[%clk 0:02:54]}  fxe6 {[%clk 0:02:52]} 12. Bf4 {[%clk 0:02:53]}  Bd6 {[%clk 0:02:44]} 13. Bxd6 {[%clk 0:02:46]}  Rxd6 {[%clk 0:02:43]} 14. Re4 {[%clk 0:02:44]}  e5 {[%clk 0:02:33]} 15. Qe2 {[%clk 0:02:40]}  Rd5 {[%clk 0:02:18]} 16. a3 {[%clk 0:02:39]}  Re8 {[%clk 0:02:07]} 17. Re1 {[%clk 0:02:38]}  g5 {[%clk 0:01:52]} 18. Nxd4 {[%clk 0:02:34]}  Qxe2 {[%clk 0:01:46]} 19. Nxe2 {[%clk 0:02:34]}  Rd2 {[%clk 0:01:43]} 20. Rc4 {[%clk 0:02:29]}  Red8 {[%clk 0:01:20]} 21. Kf1 {[%clk 0:02:27]}  Nd4 {[%clk 0:01:13]} 22. Nxd4 {[%clk 0:02:25]}  R8xd4 {[%clk 0:01:08]} 23. Rc3 {[%clk 0:02:06]}  Rf4 {[%clk 0:01:03]} 24. f3 {[%clk 0:02:01]}  g4 {[%clk 0:00:39]} 25. Rxe5 {[%clk 0:02:00]}  gxf3 {[%clk 0:00:39]} 26. gxf3 {[%clk 0:01:51]}  Rxh2 {[%clk 0:00:39]} 27. Re2 {[%clk 0:01:47]}  Rh1+ {[%clk 0:00:35]} 28. Kg2 {[%clk 0:01:45]}  Rfh4 {[%clk 0:00:25]} 29. Re7 {[%clk 0:01:26]}  R1h2+ {[%clk 0:00:25]} 30. Kg3 {[%clk 0:01:25]}  R2h3+ {[%clk 0:00:24]} 31. Kf2 {[%clk 0:01:25]}  c6 {[%clk 0:00:19]} 32. Rd3 {[%clk 0:01:23]}  Rh2+ {[%clk 0:00:18]} 33. Ke3 {[%clk 0:01:23]}  Rxc2 {[%clk 0:00:10]} 34. Rdd7 {[%clk 0:01:20]}  Rhh2 {[%clk 0:00:09]} 35. Rg7 {[%clk 0:01:15]}  Rxb2 {[%clk 0:00:08]} 36. Rdf7 {[%clk 0:01:12]}  Rhe2+ {[%clk 0:00:05]} 37. Kf4 {[%clk 0:01:12]}  Re8 {[%clk 0:00:04]} 38. Rxh7 {[%clk 0:01:11]}  Rb3 {[%clk 0:00:04]} 39. a4 {[%clk 0:01:10]}  Rb4+ {[%clk 0:00:04]} 40. Kg3 {[%clk 0:01:08]}  a5 {[%clk 0:00:05]} 41. f4 {[%clk 0:01:05]}  Ree4 {[%clk 0:00:02]} 42. f5 {[%clk 0:01:02]}  Kb8 {[%clk 0:00:01]} 43. f6 {[%clk 0:01:01]}  Rg4+ {[%clk 0:00:01]} 44. Kh3 {[%clk 0:00:59]}  Rgc4 {[%clk 0:00:00]} 45. Rfg7 {[%clk 0:00:53]} 1-0


[Site "https://www.chess.com"]

[Event "Titled Tuesday Blitz August 1 Early 2023"]
[White "Fernandez Siles, Luis"]
[Black "Vila Dupla, Aurelio"]
[WhiteFideId "2209420"]
[BlackFideId "2203383"]
[WhiteElo "2286"]
[BlackElo "2148"]
[Result "1-0"]
[Round "11"]
[TimeControl "180+1"]
[Date "2023.08.01"]
[WhiteClock "0:00:49"]
[BlackClock "0:00:01"]
[Board "154"]

1. e4 {[%clk 0:03:00]}  c5 {[%clk 0:02:59]} 2. Nf3 {[%clk 0:03:00]}  d6 {[%clk 0:02:59]} 3. Bb5+ {[%clk 0:03:00]}  Nd7 {[%clk 0:02:59]} 4. O-O {[%clk 0:02:58]}  a6 {[%clk 0:02:58]} 5. Bd3 {[%clk 0:02:57]}  Ngf6 {[%clk 0:02:56]} 6. Re1 {[%clk 0:02:57]}  e6 {[%clk 0:02:56]} 7. c3 {[%clk 0:02:57]}  Be7 {[%clk 0:02:54]} 8. Bc2 {[%clk 0:02:57]}  b5 {[%clk 0:02:54]} 9. d4 {[%clk 0:02:57]}  cxd4 {[%clk 0:02:55]} 10. cxd4 {[%clk 0:02:57]}  Bb7 {[%clk 0:02:55]} 11. Nbd2 {[%clk 0:02:50]}  h6 {[%clk 0:02:55]} 12. Nf1 {[%clk 0:02:51]}  O-O {[%clk 0:02:55]} 13. Ng3 {[%clk 0:02:51]}  Rc8 {[%clk 0:02:54]} 14. Bf4 {[%clk 0:02:44]}  Qc7 {[%clk 0:02:42]} 15. Rc1 {[%clk 0:02:43]}  Qb6 {[%clk 0:02:30]} 16. Qd2 {[%clk 0:02:40]}  Ng4 {[%clk 0:02:03]} 17. h3 {[%clk 0:02:32]}  e5 {[%clk 0:02:03]} 18. Nf5 {[%clk 0:02:19]}  Bf6 {[%clk 0:01:50]} 19. Bg3 {[%clk 0:02:17]}  g6 {[%clk 0:01:35]} 20. hxg4 {[%clk 0:02:03]}  gxf5 {[%clk 0:01:35]} 21. gxf5 {[%clk 0:02:01]}  Bg7 {[%clk 0:01:34]} 22. d5 {[%clk 0:01:50]}  Nf6 {[%clk 0:01:31]} 23. Bd3 {[%clk 0:01:47]}  a5 {[%clk 0:01:30]} 24. Bh4 {[%clk 0:01:47]}  Kh7 {[%clk 0:01:27]} 25. Nh2 {[%clk 0:01:38]}  Ng8 {[%clk 0:00:54]} 26. g4 {[%clk 0:01:30]}  b4 {[%clk 0:00:46]} 27. g5 {[%clk 0:01:21]}  Ba6 {[%clk 0:00:43]} 28. Bxa6 {[%clk 0:01:20]}  Qxa6 {[%clk 0:00:43]} 29. Ng4 {[%clk 0:01:14]}  h5 {[%clk 0:00:40]} 30. Nf6+ {[%clk 0:01:12]}  Nxf6 {[%clk 0:00:26]} 31. Rxc8 {[%clk 0:01:09]}  Rxc8 {[%clk 0:00:24]} 32. gxf6 {[%clk 0:01:09]}  Bh6 {[%clk 0:00:25]} 33. Qd1 {[%clk 0:01:00]}  Qd3 {[%clk 0:00:14]} 34. Qxh5 {[%clk 0:00:57]}  Qd2 {[%clk 0:00:08]} 35. Qxf7+ {[%clk 0:00:54]}  Kh8 {[%clk 0:00:04]} 36. Rf1 {[%clk 0:00:50]}  Rc1 {[%clk 0:00:04]} 37. Qe8+ {[%clk 0:00:48]}  Kh7 {[%clk 0:00:04]} 38. Qg6+ {[%clk 0:00:48]}  Kh8 {[%clk 0:00:01]} 39. Qxh6+ {[%clk 0:00:49]} 1-0


[Site "https://www.chess.com"]

[Event "Titled Tuesday Blitz August 1 Early 2023"]
[White "Smietanska, Wiktoria"]
[Black "Bocangel Chavez, Marjoire J."]
[WhiteFideId "21869359"]
[BlackFideId "3810500"]
[WhiteElo "2259"]
[BlackElo "1902"]
[Result "1-0"]
[Round "11"]
[TimeControl "180+1"]
[Date "2023.08.01"]
[WhiteClock "0:02:22"]
[BlackClock "0:01:42"]
[Board "156"]

1. c4 {[%clk 0:03:00]}  e5 {[%clk 0:02:55]} 2. Nc3 {[%clk 0:03:01]}  Nc6 {[%clk 0:02:54]} 3. Nf3 {[%clk 0:03:01]}  g6 {[%clk 0:02:53]} 4. d4 {[%clk 0:03:00]}  exd4 {[%clk 0:02:50]} 5. Nxd4 {[%clk 0:03:01]}  Bg7 {[%clk 0:02:50]} 6. Nxc6 {[%clk 0:03:01]}  bxc6 {[%clk 0:02:51]} 7. g3 {[%clk 0:03:02]}  Ba6 {[%clk 0:02:44]} 8. Qa4 {[%clk 0:03:00]}  Bb7 {[%clk 0:02:44]} 9. Bg2 {[%clk 0:03:00]}  Ne7 {[%clk 0:02:43]} 10. Bg5 {[%clk 0:02:57]}  Bh6 {[%clk 0:02:42]} 11. Bxh6 {[%clk 0:02:56]}  Nf5 {[%clk 0:02:39]} 12. Bf4 {[%clk 0:02:53]}  O-O {[%clk 0:02:31]} 13. O-O {[%clk 0:02:51]}  g5 {[%clk 0:02:20]} 14. Bd2 {[%clk 0:02:44]}  f6 {[%clk 0:02:19]} 15. c5 {[%clk 0:02:40]}  Kg7 {[%clk 0:02:14]} 16. Qg4 {[%clk 0:02:36]}  Ne7 {[%clk 0:02:13]} 17. f4 {[%clk 0:02:35]}  h6 {[%clk 0:01:59]} 18. fxg5 {[%clk 0:02:33]}  hxg5 {[%clk 0:02:00]} 19. h4 {[%clk 0:02:29]}  d5 {[%clk 0:01:56]} 20. hxg5 {[%clk 0:02:28]}  f5 {[%clk 0:01:56]} 21. Qd4+ {[%clk 0:02:26]}  Kg6 {[%clk 0:01:48]} 22. Rf4 {[%clk 0:02:24]}  Ba6 {[%clk 0:01:42]} 23. Rh4 {[%clk 0:02:23]}  Rh8 {[%clk 0:01:42]} 24. Qf6# {[%clk 0:02:22]} 1-0


[Site "https://www.chess.com"]

[Event "Titled Tuesday Blitz August 1 Early 2023"]
[White "Samaganova, Aleksandra"]
[Black "campochess"]
[WhiteFideId "13800221"]
[WhiteElo "2228"]
[BlackElo "2197"]
[Result "0-1"]
[Round "11"]
[TimeControl "180+1"]
[Date "2023.08.01"]
[WhiteClock "0:00:00"]
[BlackClock "0:00:17"]
[Board "159"]

1. c4 {[%clk 0:03:00]}  e6 {[%clk 0:02:57]} 2. Nc3 {[%clk 0:03:00]}  c6 {[%clk 0:02:57]} 3. Nf3 {[%clk 0:03:00]}  d5 {[%clk 0:02:57]} 4. e3 {[%clk 0:03:00]}  Nf6 {[%clk 0:02:56]} 5. d4 {[%clk 0:03:00]}  Be7 {[%clk 0:02:53]} 6. Bd3 {[%clk 0:02:51]}  Nbd7 {[%clk 0:02:44]} 7. O-O {[%clk 0:02:51]}  O-O {[%clk 0:02:43]} 8. e4 {[%clk 0:02:49]}  dxe4 {[%clk 0:02:42]} 9. Nxe4 {[%clk 0:02:49]}  Nxe4 {[%clk 0:02:42]} 10. Bxe4 {[%clk 0:02:50]}  Nf6 {[%clk 0:02:41]} 11. Bc2 {[%clk 0:02:51]}  Qa5 {[%clk 0:02:39]} 12. Ne5 {[%clk 0:02:28]}  Rd8 {[%clk 0:02:36]} 13. Bd2 {[%clk 0:02:25]}  Qc7 {[%clk 0:02:30]} 14. Bc3 {[%clk 0:02:18]}  c5 {[%clk 0:02:28]} 15. Qe2 {[%clk 0:01:26]}  cxd4 {[%clk 0:02:26]} 16. Bd2 {[%clk 0:01:21]}  b5 {[%clk 0:02:16]} 17. Bd3 {[%clk 0:01:09]}  bxc4 {[%clk 0:02:11]} 18. Nxc4 {[%clk 0:01:04]}  Bb7 {[%clk 0:02:08]} 19. Rac1 {[%clk 0:00:58]}  Qc6 {[%clk 0:02:05]} 20. f3 {[%clk 0:00:57]}  Qe8 {[%clk 0:02:03]} 21. Rfe1 {[%clk 0:00:55]}  Rac8 {[%clk 0:02:01]} 22. Na5 {[%clk 0:00:41]}  Bd5 {[%clk 0:01:53]} 23. Bb5 {[%clk 0:00:38]}  Qf8 {[%clk 0:01:49]} 24. a3 {[%clk 0:00:37]}  Rxc1 {[%clk 0:01:45]} 25. Rxc1 {[%clk 0:00:36]}  Rc8 {[%clk 0:01:45]} 26. Rb1 {[%clk 0:00:24]}  h6 {[%clk 0:01:42]} 27. h3 {[%clk 0:00:20]}  Bd6 {[%clk 0:01:37]} 28. Bd3 {[%clk 0:00:17]}  Bc7 {[%clk 0:01:36]} 29. Nc4 {[%clk 0:00:15]}  Bxc4 {[%clk 0:01:32]} 30. Bxc4 {[%clk 0:00:15]}  Qd6 {[%clk 0:01:32]} 31. f4 {[%clk 0:00:15]}  Bb6 {[%clk 0:01:29]} 32. Bd3 {[%clk 0:00:15]}  Nd5 {[%clk 0:01:23]} 33. Qf2 {[%clk 0:00:13]}  Ne3 {[%clk 0:01:22]} 34. Rc1 {[%clk 0:00:11]}  Rxc1+ {[%clk 0:01:19]} 35. Bxc1 {[%clk 0:00:12]}  Qc6 {[%clk 0:01:18]} 36. Bd2 {[%clk 0:00:11]}  f5 {[%clk 0:01:12]} 37. Kh2 {[%clk 0:00:09]}  Qd6 {[%clk 0:01:07]} 38. Kh1 {[%clk 0:00:04]}  Qd5 {[%clk 0:00:51]} 39. Kh2 {[%clk 0:00:04]}  Qa2 {[%clk 0:00:50]} 40. Bc1 {[%clk 0:00:03]}  Qb3 {[%clk 0:00:49]} 41. Ba6 {[%clk 0:00:02]}  Bc5 {[%clk 0:00:41]} 42. Bc8 {[%clk 0:00:02]}  Qd5 {[%clk 0:00:39]} 43. Ba6 {[%clk 0:00:01]}  Bb6 {[%clk 0:00:38]} 44. Bd3 {[%clk 0:00:01]}  Kh8 {[%clk 0:00:34]} 45. Qe2 {[%clk 0:00:01]}  Qd6 {[%clk 0:00:28]} 46. Qf2 {[%clk 0:00:02]}  Nd5 {[%clk 0:00:25]} 47. Bd2 {[%clk 0:00:02]}  g5 {[%clk 0:00:20]} 48. g3 {[%clk 0:00:01]}  gxf4 {[%clk 0:00:19]} 49. gxf4 {[%clk 0:00:02]}  Bc7 {[%clk 0:00:18]} 50. Kg2 {[%clk 0:00:00]}  Nxf4+ {[%clk 0:00:17]} 0-1


[Site "https://www.chess.com"]

[Event "Titled Tuesday Blitz August 1 Early 2023"]
[White "Lakshmi C"]
[Black "Levine, David"]
[WhiteFideId "25035347"]
[BlackFideId "2011611"]
[WhiteElo "2079"]
[BlackElo "2105"]
[Result "1-0"]
[Round "11"]
[TimeControl "180+1"]
[Date "2023.08.01"]
[WhiteClock "0:01:30"]
[BlackClock "0:01:42"]
[Board "160"]

1. e4 {[%clk 0:02:54]}  e5 {[%clk 0:02:59]} 2. Nf3 {[%clk 0:02:54]}  Nc6 {[%clk 0:02:59]} 3. Bb5 {[%clk 0:02:54]}  a6 {[%clk 0:02:56]} 4. Ba4 {[%clk 0:02:54]}  Nf6 {[%clk 0:02:56]} 5. O-O {[%clk 0:02:52]}  Be7 {[%clk 0:02:56]} 6. Re1 {[%clk 0:02:51]}  b5 {[%clk 0:02:55]} 7. Bb3 {[%clk 0:02:51]}  d6 {[%clk 0:02:56]} 8. c3 {[%clk 0:02:50]}  O-O {[%clk 0:02:55]} 9. h3 {[%clk 0:02:49]}  Bb7 {[%clk 0:02:54]} 10. d4 {[%clk 0:02:49]}  Re8 {[%clk 0:02:54]} 11. Nbd2 {[%clk 0:02:48]}  Bf8 {[%clk 0:02:53]} 12. Bc2 {[%clk 0:02:37]}  exd4 {[%clk 0:02:44]} 13. cxd4 {[%clk 0:02:37]}  Nb4 {[%clk 0:02:44]} 14. Bb1 {[%clk 0:02:37]}  c5 {[%clk 0:02:43]} 15. d5 {[%clk 0:02:36]}  a5 {[%clk 0:02:36]} 16. Nf1 {[%clk 0:02:16]}  Na6 {[%clk 0:02:34]} 17. Ng3 {[%clk 0:02:11]}  g6 {[%clk 0:02:34]} 18. Bg5 {[%clk 0:02:08]}  h6 {[%clk 0:02:33]} 19. Bf4 {[%clk 0:02:04]}  c4 {[%clk 0:02:28]} 20. Qc1 {[%clk 0:01:58]}  Kh7 {[%clk 0:02:27]} 21. Nd4 {[%clk 0:01:46]}  Nc5 {[%clk 0:02:18]} 22. Nxb5 {[%clk 0:01:40]}  Ncxe4 {[%clk 0:02:09]} 23. Nxe4 {[%clk 0:01:38]}  Nxe4 {[%clk 0:02:08]} 24. Bxe4 {[%clk 0:01:37]}  f5 {[%clk 0:02:01]} 25. Bf3 {[%clk 0:01:34]}  Rxe1+ {[%clk 0:01:56]} 26. Qxe1 {[%clk 0:01:31]}  g5 {[%clk 0:01:42]} 27. Be3 {[%clk 0:01:30]} 1-0


[Site "https://www.chess.com"]

[Event "Titled Tuesday Blitz August 1 Early 2023"]
[White "Vargas, Mauricio"]
[Black "Goughfather"]
[WhiteFideId "4404572"]
[WhiteElo "1897"]
[BlackElo "2092"]
[Result "0-1"]
[Round "11"]
[TimeControl "180+1"]
[Date "2023.08.01"]
[WhiteClock "0:00:00"]
[BlackClock "0:00:22"]
[Board "163"]

1. e4 {[%clk 0:03:00]}  c6 {[%clk 0:03:00]} 2. Nc3 {[%clk 0:02:58]}  d5 {[%clk 0:03:01]} 3. d3 {[%clk 0:02:54]}  dxe4 {[%clk 0:02:57]} 4. Nxe4 {[%clk 0:02:50]}  Nf6 {[%clk 0:02:57]} 5. Nxf6+ {[%clk 0:02:48]}  exf6 {[%clk 0:02:58]} 6. Ne2 {[%clk 0:02:38]}  Bd6 {[%clk 0:02:48]} 7. g3 {[%clk 0:02:37]}  Bg4 {[%clk 0:02:43]} 8. Bg2 {[%clk 0:02:33]}  Nd7 {[%clk 0:02:43]} 9. h3 {[%clk 0:02:30]}  Bh5 {[%clk 0:02:41]} 10. g4 {[%clk 0:02:29]}  Bg6 {[%clk 0:02:41]} 11. Ng3 {[%clk 0:02:25]}  O-O {[%clk 0:02:21]} 12. Ne4 {[%clk 0:02:09]}  Re8 {[%clk 0:02:14]} 13. O-O {[%clk 0:02:07]}  Bc7 {[%clk 0:02:11]} 14. Bd2 {[%clk 0:01:44]}  f5 {[%clk 0:02:03]} 15. Ng5 {[%clk 0:00:57]}  fxg4 {[%clk 0:01:56]} 16. hxg4 {[%clk 0:00:56]}  Nf6 {[%clk 0:01:29]} 17. f4 {[%clk 0:00:52]}  h6 {[%clk 0:01:24]} 18. Nh3 {[%clk 0:00:19]}  Qd6 {[%clk 0:01:17]} 19. Qf3 {[%clk 0:00:09]}  Be4 {[%clk 0:00:32]} 20. dxe4 {[%clk 0:00:08]}  Qxd2 {[%clk 0:00:32]} 21. Rf2 {[%clk 0:00:08]}  Bb6 {[%clk 0:00:31]} 22. e5 {[%clk 0:00:06]}  Bxf2+ {[%clk 0:00:25]} 23. Nxf2 {[%clk 0:00:05]}  Nd5 {[%clk 0:00:24]} 24. Qd3 {[%clk 0:00:02]}  Qxd3 {[%clk 0:00:23]} 25. cxd3 {[%clk 0:00:03]}  Ne3 {[%clk 0:00:23]} 26. Bf3 {[%clk 0:00:02]}  Nc2 {[%clk 0:00:23]} 27. Rc1 {[%clk 0:00:01]}  Nd4 {[%clk 0:00:23]} 28. Rc4 {[%clk 0:00:01]}  Rad8 {[%clk 0:00:22]} 29. Kg2 {[%clk 0:00:02]}  Nxf3 {[%clk 0:00:21]} 30. Kxf3 {[%clk 0:00:02]}  Rd7 {[%clk 0:00:22]} 31. Ke4 {[%clk 0:00:00]}  Red8 {[%clk 0:00:22]} 0-1


[Site "https://www.chess.com"]